{"text_format":"1","workbook":"xlsx","n_sheets":6,"sheets":["Data Input","Stabilized Vacancy","U.S. Office Using Employment","Business Summary","Executive Summary","Gap Analysis"],"not_rendered":{"charts":0,"images":2,"macros":1,"external_links":0,"defined_names":7,"comments":0,"pivot_tables":0},"unopened":[],"bounds":{"document_bytes":16777216,"sheet_cells":100000,"rows_first":2000,"rows_last":500,"rows_between":2000,"halvings":0,"cell_chars":16384,"cell_head_chars":4096},"cells_cut":0,"cells_raw":0,"read":"whole","date_system":"1900"}

{"sheet":"Data Input","index":0,"n_rows":19,"n_cols":8,"rows_kept":19,"cut":false,"hidden":false,"merged":[[5,1,5,2]]}
[]
[]
[null,"CCIM Office Gap Analysis",null,null,null,null,null,{"$f":"NOW()","v":"2024-09-29T11:14:21.550"}]
[]
[null,"Market Area",null,null,"Market Area Employment Sector","% Office Using",null,"# Office Employees"]
[null,"Galleria/West Loop, Houston (10-minute drive time)",null,null,{"$f":"'U.S. Office Using Employment'!A326","v":"Wholesale trade"},{"$f":"'U.S. Office Using Employment'!F326","v":9.348504003371258E-2},null,{"$f":"F6*'Business Summary'!D60","v":222.2139401601348}]
[null,null,null,null,{"$f":"'U.S. Office Using Employment'!A389","v":"Retail trade"},{"$f":"'U.S. Office Using Employment'!F389","v":3.452578507999645E-2},null,{"$f":"F7*'Business Summary'!D61","v":398.42755982315902}]
[null,"Market Area Supply Data",null,null,{"$f":"'U.S. Office Using Employment'!A475","v":"Transportation and warehousing"},{"$f":"'U.S. Office Using Employment'!F475","v":0.15894769152989183},null,{"$f":"F8*'Business Summary'!D72","v":779.32053157105963}]
[null,"Current Total Supply (RSF)",27667000,null,{"$f":"'U.S. Office Using Employment'!A529","v":"Information"},{"$f":"'U.S. Office Using Employment'!F529","v":0.79011420413989997},null,{"$f":"F9*'Business Summary'!D73","v":1894.6938615274801}]
[null,"Current Overall Vacancy Supply (RSF)",6806000,null,{"$f":"'U.S. Office Using Employment'!A557","v":"Finance and insurance"},{"$f":"'U.S. Office Using Employment'!F557","v":0.9922765896958019},null,{"$f":"F10*'Business Summary'!D74","v":3888.7319550178477}]
[null,"New Supply in Construction Pipeline (RSF)",0,null,{"$f":"'U.S. Office Using Employment'!A599","v":"Real estate"},{"$f":"'U.S. Office Using Employment'!F599","v":0.95185712436909542},null,{"$f":"F11*'Business Summary'!D78","v":4270.9829170441308}]
[null,"Stabilized Vacancy Rate %",0.16400000000000001,null,{"$f":"'U.S. Office Using Employment'!A625","v":"Professional and business services"},{"$f":"'U.S. Office Using Employment'!F625","v":0.95268277837826498},null,{"$f":"F12*'Business Summary'!D79","v":8224.5104257395615}]
[null,null,null,null,{"$f":"'U.S. Office Using Employment'!A677","v":"Management of companies and enterprises"},{"$f":"'U.S. Office Using Employment'!F677","v":1.0000415127236497},null,{"$f":"F13*'Business Summary'!D81","v":14283.59292623189}]
[null,"Market Area Forecast Data",null,null,{"$f":"'U.S. Office Using Employment'!A681","v":"Administrative and support services"},{"$f":"'U.S. Office Using Employment'!F681","v":0.60245563569449445},null,{"$f":"F14*'Business Summary'!D82","v":25994.153313310351}]
[null,"Forecast Period (Months)",24,null,{"$f":"'U.S. Office Using Employment'!A728","v":"Educational services"},{"$f":"'U.S. Office Using Employment'!F728","v":6.2433806396949801E-2},null,{"$f":"F15*'Business Summary'!D83","v":677.28193179411142}]
[null,"Economic Base Multiplier",7.6,null,{"$f":"'U.S. Office Using Employment'!A741","v":"Health care and social assistance"},{"$f":"'U.S. Office Using Employment'!F741","v":0.23438144431133023},null,{"$f":"F16*'Business Summary'!D84","v":261.56969185144453}]
[null,"Forecast Annual Employment Growth Rate",{"$f":"'Executive Summary'!C16","v":4.0999999999999995E-3},null,{"$f":"'U.S. Office Using Employment'!A845","v":"Other services"},{"$f":"'U.S. Office Using Employment'!F845","v":0.88892827004219399},null,{"$f":"F17*'Business Summary'!D89","v":22083.645012658224}]
[null,"Forecast Basic Employment Change",{"$f":"('Business Summary'!D98*(1+C17)^(C15/12)*(1/C16))-('Business Summary'!D98*(1/C16))","v":254.76759984605451},null,{"$f":"'U.S. Office Using Employment'!A897","v":"Government"},{"$f":"'U.S. Office Using Employment'!F897","v":0.32686759288028761},null,{"$f":"F18*'Business Summary'!D91","v":6486.3605131164277}]
[null,"Forecast Total Office Using Employment",{"$f":"F19*((C18*C16))+H19","v":90200.605468196343},null,"Current Total Office Using Employment",{"$f":"H19/'Business Summary'!D98","v":0.37966536065083967},null,{"$f":"SUM(H6:H18)","v":89465.484579845812}]

{"sheet":"Stabilized Vacancy","index":1,"n_rows":41,"n_cols":5,"rows_kept":41,"cut":false,"hidden":false,"merged":[]}
["Submarket Name","Year","Vac %","Effective Rent/SF","Effective Rent % Chg"]
["Galleria/West Loop South",1989,0.20899999999999999,10.039999999999999]
["Galleria/West Loop South",1990,0.14599999999999999,10.64,0.06]
["Galleria/West Loop South",1991,0.125,11.43,7.3999999999999996E-2]
["Galleria/West Loop South",1992,0.14399999999999999,11.02,-3.5999999999999997E-2]
["Galleria/West Loop South",1993,0.16300000000000001,10.74,-2.5000000000000001E-2]
["Galleria/West Loop South",1994,0.16600000000000001,10.75,1E-3]
["Galleria/West Loop South",1995,0.13400000000000001,10.96,0.02]
["Galleria/West Loop South",1996,9.8000000000000004E-2,11.91,8.6999999999999994E-2]
["Galleria/West Loop South",1997,0.10199999999999999,14.21,0.193]
["Galleria/West Loop South",1998,8.2000000000000003E-2,15.72,0.106]
["Galleria/West Loop South",1999,5.7000000000000002E-2,15.01,-4.4999999999999998E-2]
["Galleria/West Loop South",2000,0.16900000000000001,15.52,3.4000000000000002E-2]
["Galleria/West Loop South",2001,0.19900000000000001,15.82,1.9E-2]
["Galleria/West Loop South",2002,0.24199999999999999,14.55,-0.08]
["Galleria/West Loop South",2003,0.24,13.87,-4.7E-2]
["Galleria/West Loop South",2004,0.19,13.84,-2E-3]
["Galleria/West Loop South",2005,0.16400000000000001,14.36,3.7999999999999999E-2]
["Galleria/West Loop South",2006,0.128,15.32,6.7000000000000004E-2]
["Galleria/West Loop South",2007,0.153,16.78,9.5000000000000001E-2]
["Galleria/West Loop South",2008,5.8999999999999997E-2,18.39,9.6000000000000002E-2]
["Galleria/West Loop South",2009,6.3E-2,18.170000000000002,-1.2E-2]
["Galleria/West Loop South",2010,6.2E-2,17.46,-3.9E-2]
["Galleria/West Loop South",2011,9.5000000000000001E-2,17.66,1.0999999999999999E-2]
["Galleria/West Loop South",2012,8.1000000000000003E-2,18.809999999999999,6.5000000000000002E-2]
["Galleria/West Loop South",2013,4.8000000000000001E-2,19.27,2.4E-2]
["Galleria/West Loop South",2014,5.6000000000000001E-2,19.84,0.03]
["Galleria/West Loop South",2015,8.2000000000000003E-2,20.12,1.4E-2]
["Galleria/West Loop South",2016,8.1000000000000003E-2,20.260000000000002,7.0000000000000001E-3]
["Galleria/West Loop South",2017,9.4E-2,20.83,2.8000000000000001E-2]
["Galleria/West Loop South",2018,0.12,21.12,1.4E-2]
["Galleria/West Loop South",2019,0.13500000000000001,21.38,1.2E-2]
["Galleria/West Loop South",2020,0.16500000000000001,21.26,-6.0000000000000001E-3]
["Galleria/West Loop South",2021,0.158,21.13,-6.0000000000000001E-3]
["Galleria/West Loop South",2022,0.153,21.58,2.1000000000000001E-2]
["Galleria/West Loop South",2023,0.19900000000000001,21.1,-2.1999999999999999E-2]
[]
[null,null,0.24199999999999999,"High Range","11 inflection points over the past 35 years"]
[null,null,5.7000000000000002E-2,"Low Range"]
[null,null,0.14699999999999999,"Average"]
[null,null,0.16400000000000001,"Median"]

{"sheet":"U.S. Office Using Employment","index":2,"n_rows":924,"n_cols":6,"rows_kept":924,"cut":false,"hidden":true,"merged":[]}
["Office Using Employment Estimate (updated April 2019)"]
["Industry","NAICS Code","Total Employment x 1,000","Office Using? \"X\"=Yes","# of Office Workers","% of Office Workers"]
["Total nonfarm",null,151020]
[]
["Total private",null,128491]
[]
["Goods-producing",null,21070]
[]
["Mining and logging",null,756]
["Logging",1133,45.7]
["Mining",21,710.6]
["Oil and gas extraction",211,155.1]
["Mining, except oil and gas",212,195.5]
["Coal mining",2121,52.4]
["Bituminous coal and lignite surface mining(1)",212111,22.9]
["Bituminous coal underground mining and anthracite mining(1)","212112,3",29.6]
["Metal ore mining",2122,41.5]
["Nonmetallic mineral mining and quarrying",2123,101.7]
["Stone mining and quarrying(1)",21231,42.6]
["Crushed and broken limestone mining(1)",212312,22.2]
["Other stone mining and quarrying(1)","212311,3,9",20.399999999999999]
["Sand, gravel, clay, and refractory mining(1)",21232,46.9]
["Construction sand and gravel mining(1)",212321,31.1]
["Other nonmetallic mineral mining(1)",21239,12.3]
["Support activities for mining",213,360]
["Support activities for oil and gas operations(1)",213112,280.8]
[]
["Construction",23,7478]
["Construction of buildings",236,1650.6]
["Residential building",2361,829.3]
["New single-family general contractors",236115,371.3]
["New multifamily general contractors",236116,35.6]
["New housing operative builders",236117,41.2]
["Residential remodelers",236118,381.2]
["Nonresidential building",2362,821.3]
["Industrial building",23621,163.80000000000001]
["Commercial building",23622,657.5]
["Heavy and civil engineering construction",237,1088.0999999999999]
["Utility system construction(1)",2371,568.6]
["Water and sewer system construction(1)",23711,199]
["Oil and gas pipeline construction(1)",23712,179.3]
["Power and communication system construction(1)",23713,189.8]
["Land subdivision(1)",2372,39]
["Highway, street, and bridge construction(1)",2373,360.2]
["Other heavy construction(1)",2379,119.6]
["Specialty trade contractors",238,4739.6000000000004]
["Residential specialty trade contractors","part 238",2066]
["Nonresidential specialty trade contractors","part 238",2673.6]
["Building foundation and exterior contractors(1)",2381,921.1]
["Poured concrete structure contractors",23811,230.9]
["Steel and precast concrete contractors",23812,86.4]
["Framing contractors",23813,83.8]
["Masonry contractors",23814,145.30000000000001]
["Glass and glazing contractors",23815,69.900000000000006]
["Roofing contractors",23816,220.3]
["Siding contractors",23817,39.200000000000003]
["Other building exterior contractors",23819,47.6]
["Building equipment contractors(1)",2382,2254.1999999999998]
["Electrical contractors",23821,954.8]
["Plumbing and HVAC contractors",23822,1150.0999999999999]
["Other building equipment contractors",23829,148.69999999999999]
["Building finishing contractors(1)",2383,851]
["Drywall and insulation contractors",23831,260.89999999999998]
["Painting and wall covering contractors",23832,215.8]
["Flooring contractors",23833,82.9]
["Tile and terrazzo contractors",23834,59.4]
["Finish carpentry contractors",23835,153.80000000000001]
["Other building finishing contractors",23839,79.5]
["Other specialty trade contractors(1)",2389,711.4]
["Site preparation contractors",23891,353.6]
["All other specialty trade contractors",23899,356.9]
[]
["Manufacturing",null,12836]
[]
["Durable goods",null,8056]
["Wood products",321,410.2]
["Sawmills and wood preservation(1)",3211,93.7]
["Plywood and engineered wood products(1)",3212,80.8]
["Other wood products(1)",3219,235.6]
["Millwork(1)",32191,106.1]
["Wood windows and doors(1)",321911,52.1]
["Cut stock, resawing lumber, planing, and other millwork, including flooring(1)","321912,8",53.7]
["Wood containers and pallets(1)",32192,59.6]
["All other wood products(1)",32199,70.3]
["Nonmetallic mineral products",327,414.5]
["Clay products and refractories(1)",3271,39.6]
["Glass and glass products(1)",3272,85.5]
["Flat glass and other pressed and blown glass and glassware(1)","327211,2",24.6]
["Glass containers and products made of purchased glass(1)","327213,5",61]
["Cement and concrete products(1)",3273,191.8]
["Ready-mix concrete(1)",32732,98.1]
["Other cement and concrete products(1)","32731,3,9",94.1]
["Lime, gypsum, and other nonmetallic mineral products(1)","3274,9",97.6]
["Primary metals",331,381.7]
["Iron and steel mills and ferroalloy production(1)",3311,85.2]
["Steel products from purchased steel(1)",3312,58.8]
["Alumina and aluminum production(1)",3313,57.4]
["Other nonferrous metal production(1)",3314,60.4]
["Foundries(1)",3315,120.1]
["Ferrous metal foundries(1)",33151,63.6]
["Iron foundries(1)",331511,35.5]
["Nonferrous metal foundries(1)",33152,56.5]
["Fabricated metal products",332,1483.6]
["Forging and stamping(1)",3321,102.3]
["Cutlery and hand tools(1)",3322,35.6]
["Architectural and structural metals(1)",3323,391.6]
["Plate work and fabricated structural products(1)",33231,170.4]
["Fabricated structural metal products(1)",332312,88.2]
["Prefabricated metal buildings, components, and plate work(1)","332311,3",82.2]
["Ornamental and architectural metal products(1)",33232,221.2]
["Metal windows and doors(1)",332321,67]
["Sheet metal work(1)",332322,112.3]
["Ornamental and architectural metal work(1)",332323,42]
["Boilers, tanks, and shipping containers(1)",3324,93.7]
["Hardware, spring, and wire products(1)","3325,6",71.400000000000006]
["Machine shops and threaded products(1)",3327,363.3]
["Machine shops(1)",33271,286.89999999999998]
["Turned products and screws, nuts, and bolts(1)",33272,76.900000000000006]
["Precision turned products(1)",332721,38.9]
["Bolts, nuts, screws, rivets, and washers(1)",332722,37.799999999999997]
["Coating, engraving, and heat treating metals(1)",3328,143.1]
["Metal heat treating and coating and nonprecious engraving(1)","332811,2",82.3]
["Electroplating, anodizing, and coloring metals(1)",332813,60.9]
["Other fabricated metal products(1)",3329,282.60000000000002]
["Metal valves(1)",33291,91.4]
["Fluid power valves and hose fittings(1)",332912,37.700000000000003]
["All other metal valves(1)","332911,3,9",53.7]
["All other fabricated metal products(1)",33299,191.1]
["Small arms, ammunition, and other ordnance and accessories(1)","332992,3,4",46]
["Miscellaneous fabricated metal products and ball and roller bearings(1)","332991,6,9",144.69999999999999]
["Machinery",333,1139.5999999999999]
["Agricultural, construction, and mining machinery(1)",3331,226.6]
["Agricultural implements(1)",33311,77]
["Farm machinery and equipment(1)",333111,60.1]
["Construction machinery(1)",33312,71.8]
["Mining and oil and gas field machinery(1)",33313,77.400000000000006]
["Industrial machinery(1)",3332,119.7]
["Commercial and service industry machinery(1)",3333,96.7]
["HVAC and commercial refrigeration equipment(1)",3334,135.69999999999999]
["AC, refrigeration, and forced air heating(1)",333415,90.7]
["Metalworking machinery(1)",3335,179.6]
["Industrial molds(1)",333511,37]
["Special tools, dies, jigs, and fixtures(1)",333514,62.8]
["Machine tool manufacturing(1)",333517,40.700000000000003]
["Miscellaneous metalworking machinery(1)","333515,9",38.700000000000003]
["Turbine and power transmission equipment(1)",3336,101.4]
["Other general purpose machinery(1)",3339,279.5]
["Pumps and compressors(1)",33391,50.4]
["Material handling equipment(1)",33392,87.5]
["All other general purpose machinery(1)",33399,141.69999999999999]
["Computer and electronic products",334,1075.9000000000001]
["Computer and peripheral equipment",3341,159.5]
["Electronic computers(1)",334111,110.8]
["Computer storage devices, terminals, and other peripheral equipment(1)","334112,8",48.9]
["Communications equipment",3342,86.5]
["Telephone apparatus(1)",33421,16.3]
["Broadcast and wireless communications equipment(1)",33422,51.4]
["Semiconductors and electronic components",3344,375.4]
["Bare printed circuit boards(1)",334412,26.8]
["Semiconductors and related devices(1)",334413,183.7]
["Printed circuit assemblies(1)",334418,62.5]
["Electronic connectors and misc. electronic components(1)","334416,7,9",102.4]
["Electronic instruments",3345,421]
["Electromedical apparatus(1)",334510,71.5]
["Search, detection, and navigation instruments(1)",334511,130.6]
["Industrial process variable instruments(1)",334513,63.8]
["Electricity and signal testing instruments(1)",334515,38]
["Miscellaneous electronic instruments(1)","334512,4,6-9",117.1]
["Miscellaneous computer and electronic products","3343,6",33.4]
["Electrical equipment and appliances",335,402.8]
["Electric lighting equipment(1)",3351,50.5]
["Household appliances(1)",3352,60.5]
["Electrical equipment(1)",3353,146]
["Electric power and specialty transformers(1)",335311,29.2]
["Motors and generators, switchgears and switchboard apparatus, and relay and industrial controls(1)","335312,3,4",117]
["Other electrical equipment and components(1)",3359,145.6]
["Batteries(1)",33591,35.5]
["Wiring devices(1)",33593,46.8]
["All other electrical equipment and components(1)","33592,9",63.3]
["Transportation equipment",336,1737]
["Motor vehicles and parts(2)","3361,2,3",997]
["Motor vehicles(1)",3361,240]
["Automobiles and light trucks(1)",33611,207.4]
["Automobiles(1)",336111,137.6]
["Light trucks and utility vehicles(1)",336112,68.8]
["Heavy duty trucks(1)",33612,32.799999999999997]
["Motor vehicle bodies and trailers(1)",3362,165.7]
["Motor vehicle bodies(1)",336211,57.8]
["Truck trailers, motor homes, travel trailers, and campers(1)","336212,3,4",107.8]
["Motor vehicle parts(1)",3363,591.70000000000005]
["Motor vehicle gasoline engine and parts(1)",33631,61.8]
["Motor vehicle electric equipment(1)",33632,60.9]
["Motor vehicle steering and suspension parts(1)",33633,35]
["Motor vehicle brake systems(1)",33634,26]
["Motor vehicle power train components(1)",33635,81.3]
["Motor vehicle seating and interior trim(1)",33636,74.900000000000006]
["Motor vehicle metal stamping(1)",33637,88.6]
["All other motor vehicle parts(1)",33639,163.1]
["Aerospace products and parts(1)",3364,533.79999999999995]
["Aircraft(1)",336411,250.8]
["Aircraft engines and engine parts(1)",336412,87.5]
["Other aircraft parts and equipment(1)",336413,114.2]
["Guided missiles, space vehicles, and parts(1)","336414,5,9",81.8]
["Ship and boat building(1)",3366,145.9]
["Ship building and repairing(1)",336611,99.4]
["Boat building(1)",336612,46.4]
["Railroad rolling stock and other transportation equipment(1)","3365,9",61.4]
["Furniture and related products",337,394.9]
["Household and institutional furniture(1)",3371,251.2]
["Wood kitchen cabinets and countertops(1)",33711,122.2]
["Other household and institutional furniture(1)",33712,128.80000000000001]
["Upholstered household furniture(1)",337121,62.6]
["Nonupholstered wood household furniture(1)",337122,30.6]
["Miscellaneous household and institutional furniture(1)","337124,5,7",35.700000000000003]
["Office furniture and fixtures(1)",3372,108.3]
["Office furniture and custom architectural woodwork and millwork(1)","337211,2,4",64.7]
["Showcases, partitions, shelving, and lockers(1)",337215,43.8]
["Other furniture-related products(1)",3379,35.4]
["Miscellaneous durable goods manufacturing",339,615.4]
["Medical equipment and supplies(1)",3391,321.3]
["Surgical and medical instruments(1)",339112,129.80000000000001]
["Surgical appliances and supplies(1)",339113,106.3]
["Dental laboratories(1)",339116,45.4]
["Other miscellaneous durable goods manufacturing(1)",3399,293.89999999999998]
["Jewelry and silverware(1)",33991,22.8]
["Sporting and athletic goods(1)",33992,44.3]
["Signs(1)",33995,79.900000000000006]
["All other miscellaneous durable goods manufacturing(1)","33993,4,9",146.6]
[]
["Nondurable goods",null,4780]
["Food manufacturing",311,1636.4]
["Animal food(1)",3111,64.5]
["Grain and oilseed milling(1)",3112,59.5]
["Flour milling, malt, starch, and vegetable oil(1)","31121,2",47.5]
["Breakfast cereal(1)",31123,11.9]
["Sugar and confectionery products(1)",3113,77.400000000000006]
["Chocolate and confectionery manufacturing(1)",31135,43.8]
["Fruit and vegetable preserving and specialty(1)",3114,166.6]
["Frozen food(1)",31141,91.1]
["Frozen fruits and vegetables(1)",311411,33.1]
["Frozen specialty food(1)",311412,58.3]
["Fruit and vegetable canning and drying(1)",31142,74.5]
["Dairy products(1)",3115,150.4]
["Fluid milk(1)",311511,54.3]
["Animal slaughtering and processing(1)",3116,525.20000000000005]
["Animal, except poultry, slaughtering(1)",311611,144.6]
["Meat processed from carcasses, and rendering and meat byproduct processing(1)","311612,3",139.1]
["Poultry processing(1)",311615,241.2]
["Seafood product preparation and packaging(1)",3117,39.5]
["Bakeries and tortilla manufacturing(1)",3118,318.10000000000002]
["Bread and bakery products(1)",31181,242.6]
["Retail bakeries(1)",311811,88.4]
["Commercial bakeries and frozen cakes and other pastry products(1)","311812,3",154.19999999999999]
["Cookies, crackers, pasta, and tortillas(1)","31182,3",75.599999999999994]
["Other food products(1)",3119,236.1]
["Snack food(1)",31191,63.6]
["Miscellaneous food products(1)","31192,3,4,9",172.2]
["Textile mills",313,113.5]
["Fabric mills(1)",3132,54.5]
["Textile product mills",314,114.4]
["Textile furnishings mills(1)",3141,50.7]
["Other textile product mills(1)",3149,63.6]
["Textile bag and canvas mills(1)",31491,23.6]
["All other textile product mills(1)",31499,40.299999999999997]
["Apparel",315,107.9]
["Cut and sew apparel(1)",3152,86]
["Cut and sew apparel contractors(1)",31521,27.9]
["Cut and sew apparel, except contractors(1)","31522,4,8",58.2]
["All other apparel manufacturing(1)","3151,9",22]
["Paper and paper products",322,370.1]
["Pulp, paper, and paperboard mills(1)",3221,95.5]
["Pulp mills and paper mills(1)","32211,2",64.8]
["Paperboard mills(1)",32213,30.7]
["Converted paper products(1)",3222,274.60000000000002]
["Paperboard containers(1)",32221,151.9]
["Corrugated and solid fiber boxes(1)",322211,97]
["Folding boxes and miscellaneous paperboard containers(1)","322212,9",54.9]
["Paper bags and coated and treated paper(1)",32222,58.3]
["Stationery and other converted paper products(1)","32223,9",64.2]
["Printing and related support activities",323,421.1]
["Commercial printing, except screen(1)","323111,7",326.2]
["Petroleum and coal products",324,116.8]
["Petroleum refineries(1)",32411,71.400000000000006]
["Asphalt paving and roofing materials and other petroleum and coal products(1)","32412,9",45.5]
["Chemicals",325,857.3]
["Basic chemicals(1)",3251,157.4]
["Petrochemicals, industrial gases, synthetic dyes, and pigments(1)","32511,2,3",57.8]
["Other basic inorganic chemicals(1)",32518,40.700000000000003]
["Other basic organic chemicals(1)",32519,58.7]
["Resin, rubber, and artificial fibers(1)",3252,96.4]
["Plastics material and resin(1)",325211,62]
["Agricultural chemicals(1)",3253,36.1]
["Pharmaceuticals and medicines(1)",3254,300.5]
["Pharmaceutical preparations(1)",325412,203.1]
["Miscellaneous medicinal and biological products(1)","325411,3,4",97.3]
["Paints, coatings, and adhesives(1)",3255,66.7]
["Paints and coatings(1)",32551,42.7]
["Soaps, cleaning compounds, and toiletries(1)",3256,112]
["Soaps and cleaning compounds(1)",32561,55.1]
["Toilet preparations(1)",32562,56.7]
["Other chemical products and preparations(1)",3259,88]
["Plastics and rubber products",326,735.9]
["Plastics products(1)",3261,597.20000000000005]
["Plastics packaging materials, film, and sheet(1)",32611,96.7]
["Nonpackaging plastics film and sheet(1)",326113,40.6]
["Plastics pipe, fittings, and profile shapes(1)",32612,52.5]
["Foam products(1)","32614,5",70.599999999999994]
["Plastics bottles and laminated plastics plate, sheet, and shapes(1)","32613,6",53.8]
["Other plastics products(1)",32619,324.3]
["Rubber products(1)",3262,138.5]
["Tires(1)",32621,58.9]
["All other rubber products(1)","32622,9",79.599999999999994]
["Miscellaneous nondurable goods manufacturing","312,6",306.89999999999998]
["Beverages(1)",3121,266.7]
["Soft drinks and ice(1)",31211,98.5]
["Soft drinks(1)",312111,82.8]
["Breweries, wineries, and distilleries(1)","31212,3,4",169.3]
["Other miscellaneous nondurable goods manufacturing(1)","3122,60",39.1]
[]
["Service-providing",null,129950]
[]
["Private service-providing",null,107421]
[]
["Trade, transportation, and utilities",null,27811]
[]
["Wholesale trade",42,5932.5,null,{"$f":"IF(D326=\"x\",C326,0)","v":0},{"$f":"SUM(E326:E387)/C326","v":9.348504003371258E-2}]
["Durable goods",423,3211.9,null,0]
["Motor vehicles and parts(1)",4231,347.6,null,0]
["Motor vehicles(1)",42311,127,null,{"$f":"IF(D329=\"x\",C329,0)","v":0}]
["New motor vehicle parts(1)",42312,170.5,null,0]
["Furniture and furnishings(1)",4232,113.2,null,0]
["Furniture(1)",42321,49.5,null,0]
["Home furnishings(1)",42322,63.8,null,0]
["Lumber and construction supplies(1)",4233,248.3,null,0]
["Lumber and wood(1)",42331,114.4,null,0]
["Masonry materials(1)",42332,62.4,null,0]
["Roofing, siding, and other construction materials(1)","42333,9",71.400000000000006,null,0]
["Commercial equipment(1)",4234,701.5,null,0]
["Office equipment(1)",42342,82.5,null,0]
["Computer and software(1)",42343,234.5,null,0]
["Medical equipment(1)",42345,254,null,0]
["Miscellaneous professional and commercial equipment(1)","42341,4,6,9",130.1,null,0]
["Metals and minerals(1)",4235,138.19999999999999,null,0]
["Electric goods(1)",4236,358.4,null,0]
["Electrical equipment and wiring(1)",42361,178.9,null,0]
["Electric appliances and other electronic parts(1)","42362,9",179.5,null,0]
["Hardware and plumbing(1)",4237,285.3,null,0]
["Hardware(1)",42371,89.6,null,0]
["Plumbing equipment(1)",42372,109.8,null,0]
["HVAC and refrigeration equipment(1)","42373,4",85.6,null,0]
["Machinery and supplies(1)",4238,711.6,null,0]
["Construction equipment(1)",42381,92.1,null,0]
["Farm and garden equipment(1)",42382,99.2,null,0]
["Industrial machinery(1)",42383,331.9,null,0]
["Industrial supplies(1)",42384,95.1,null,0]
["Service establishment equipment(1)",42385,56.6,null,0]
["Other transportation goods(1)",42386,37.299999999999997,null,0]
["Miscellaneous durable goods(1)",4239,306.39999999999998,null,0]
["Sporting goods(1)",42391,56.9,null,0]
["Recyclable materials(1)",42393,107.9,null,0]
["Jewelry(1)",42394,38.799999999999997,null,0]
["Toy, hobby, and other durable goods(1)","42392,9",102.9,null,0]
["Nondurable goods",424,2166,null,0]
["Paper and paper products(1)",4241,129.9,null,0]
["Printing and writing paper and office supplies(1)","42411,2",64.7,null,0]
["Industrial paper(1)",42413,65.2,null,0]
["Druggists' goods(1)",4242,239.3,null,0]
["Apparel and piece goods(1)",4243,148.80000000000001,null,0]
["Women's and children's clothing(1)",42433,69.900000000000006,null,0]
["Grocery and related products(1)",4244,800.2,null,0]
["General line grocery(1)",42441,244.3,null,0]
["Fruits and vegetables(1)",42448,102.3,null,0]
["Farm product raw materials(1)",4245,71.2,null,0]
["Grains and field beans(1)",42451,44.8,null,0]
["Chemicals(1)",4246,150.80000000000001,null,0]
["Petroleum(1)",4247,98.8,null,0]
["Alcoholic beverages(1)",4248,200.1,null,0]
["Beer and ale(1)",42481,113.4,null,0]
["Wine and spirits(1)",42482,86.6,null,0]
["Misc. nondurable goods(1)",4249,326.10000000000002,null,0]
["Farm supplies(1)",42491,117.9,null,0]
["Books and periodicals(1)",42492,36.9,null,0]
["Nursery stock and florists' supplies(1)",42493,44.3,null,0]
["All other nondurable goods wholesalers(1)","42494,5,9",127.8,null,0]
["Electronic markets and agents and brokers",425,554.6,null,0]
["Business to business electronic markets(1)",42511,31.8,"x",31.8]
["Wholesale trade agents and brokers(1)",42512,522.79999999999995,"x",522.79999999999995]
[null,null,null,null,0]
["Retail trade",null,15788.2,null,0,{"$f":"SUM(E389:E474)/C389","v":3.452578507999645E-2}]
["Motor vehicle and parts dealers",441,2048.5,null,0]
["Automobile dealers",4411,1311.8,null,0]
["New car dealers(1)",44111,1143,null,0]
["Used car dealers(1)",44112,168.5,null,{"$f":"IF(D393=\"x\",C393,0)","v":0}]
["Other motor vehicle dealers",4412,160.9,null,0]
["Recreational vehicle dealers(1)",44121,48.9,null,0]
["Motorcycle, boat, and other vehicle dealers(1)",44122,111.7,null,0]
["Auto parts, accessories, and tire stores",4413,575.79999999999995,null,0]
["Automotive parts and accessories stores(1)",44131,381,null,0]
["Tire dealers(1)",44132,194.8,null,0]
["Furniture and home furnishings stores",442,487.3,null,0]
["Furniture stores(1)",4421,231,null,0]
["Home furnishings stores(1)",4422,256.3,null,0]
["Floor covering stores(1)",44221,72.400000000000006,null,0]
["Other home furnishings stores(1)",44229,183.9,null,0]
["Electronics and appliance stores",443,471.6,null,0]
["Household appliance stores(1)",443141,49.8,null,0]
["Electronics stores(1)",443142,422.2,null,0]
["Building material and garden supply stores",444,1301.0999999999999,null,0]
["Building material and supplies dealers(1)",4441,1138.8,null,0]
["Home centers(1)",44411,706.4,null,0]
["Paint and wallpaper stores(1)",44412,40.5,null,0]
["Hardware stores(1)",44413,157.19999999999999,null,0]
["Other building material dealers(1)",44419,235.1,null,0]
["Lawn and garden equipment and supplies stores(1)",4442,161.4,null,0]
["Outdoor power equipment stores(1)",44421,32.799999999999997,null,0]
["Nursery, garden, and farm supply stores(1)",44422,128.6,null,0]
["Food and beverage stores",445,3116.7,null,0]
["Grocery stores(1)",4451,2717.6,null,0]
["Supermarkets and other grocery stores(1)",44511,2549.1999999999998,null,0]
["Convenience stores(1)",44512,167.5,null,0]
["Specialty food stores(1)",4452,236.3,null,0]
["Meat markets and fish and seafood markets(1)","44521,2",71.5,null,0]
["Fruit and vegetable markets(1)",44523,36.9,null,0]
["Other specialty food stores(1)",44529,128,null,0]
["Beer, wine, and liquor stores(1)",4453,162.9,null,0]
["Health and personal care stores",446,1045.5999999999999,null,0]
["Pharmacies and drug stores(1)",44611,684,null,0]
["Cosmetic and beauty supply stores(1)",44612,177.5,null,0]
["Optical goods stores(1)",44613,73.3,null,0]
["Other health and personal care stores(1)",44619,111.3,null,0]
["Food (health) supplement stores(1)",446191,52.1,null,0]
["All other health and personal care stores(1)",446199,59.4,null,0]
["Gasoline stations",447,944.6,null,0]
["Gasoline stations with convenience stores(1)",44711,839.9,null,0]
["Other gasoline stations(1)",44719,104.2,null,0]
["Clothing and clothing accessories stores",448,1343.8,null,0]
["Clothing stores(1)",4481,1008.1,null,0]
["Men's clothing stores(1)",44811,49.9,null,0]
["Women's clothing stores(1)",44812,255.7,null,0]
["Children's and infants' clothing stores(1)",44813,55.3,null,0]
["Family clothing stores(1)",44814,467.1,null,0]
["Clothing accessories stores(1)",44815,57,null,0]
["Other clothing stores(1)",44819,123,null,0]
["Shoe stores(1)",4482,198.3,null,0]
["Jewelry, luggage, and leather goods stores(1)",4483,137.19999999999999,null,0]
["Sporting goods, hobby, book, and music stores",451,558.1,null,0]
["Sporting goods and musical instrument stores(1)",4511,483.7,null,0]
["Sporting goods stores(1)",45111,281.3,null,0]
["Hobby, toy, and game stores(1)",45112,131.1,null,0]
["Sewing, needlework, and piece goods stores(1)",45113,38.799999999999997,null,0]
["Musical instrument and supplies stores(1)",45114,29.8,null,0]
["Book stores and news dealers(1)",4512,74.400000000000006,null,0]
["General merchandise stores",452,3052.5,null,0]
["Department stores",4522,1122.5,null,0]
["General merchandise stores, including warehouse clubs and supercenters",4523,1930,null,0]
["Warehouse clubs and supercenters(1)",452311,1407.5,null,0]
["All other general merchandise stores(1)",452319,521.79999999999995,null,{"$f":"IF(D457=\"x\",C457,0)","v":0}]
["Miscellaneous store retailers",453,836.1,null,0]
["Florists(1)",4531,62,null,0]
["Office supplies, stationery, and gift stores(1)",4532,239.8,null,0]
["Office supplies and stationery stores(1)",45321,94.1,null,0]
["Gift, novelty, and souvenir stores(1)",45322,146,null,0]
["Used merchandise stores(1)",4533,177.3,null,0]
["Other miscellaneous store retailers(1)",4539,355.9,null,0]
["Pet and pet supplies stores(1)",45391,126.6,null,0]
["Art dealers(1)",45392,16.5,null,0]
["All other miscellaneous store retailers(1)","45393,9",212.8,null,0]
["Nonstore retailers",454,582.29999999999995,null,0]
["Electronic shopping and mail-order houses(1)",4541,404.7,"x",404.7]
["Vending machine operators(1)",4542,37.6,null,0]
["Direct selling establishments(1)",4543,140.4,"x",140.4]
["Fuel dealers(1)",45431,72.8,null,0]
["Other direct selling establishments(1)",45439,67.7,null,0]
[null,null,null,null,0]
["Transportation and warehousing",null,5538.3,null,0,{"$f":"SUM(E475:E528)/C475","v":0.15894769152989183}]
["Air transportation",481,513.9,null,0]
["Scheduled air transportation(1)",4811,464,null,0]
["Nonscheduled air transportation(1)",4812,49.9,null,0]
["Rail transportation",482,210.6,null,0]
["Water transportation",483,64.400000000000006,null,0]
["Truck transportation",484,1516.1,null,0]
["General freight trucking(1)",4841,1045.0999999999999,null,0]
["General freight trucking, local(1)",48411,261.60000000000002,null,0]
["General freight trucking, long-distance(1)",48412,783.4,null,0]
["General freight trucking, long-distance TL(1)",484121,515.6,null,0]
["General freight trucking, long-distance LTL(1)",484122,265.2,null,0]
["Specialized freight trucking(1)",4842,471.2,null,0]
["Used household and office goods moving(1)",48421,97,null,0]
["Other specialized trucking, local(1)",48422,234.4,null,0]
["Other specialized trucking, long-distance(1)",48423,140.5,null,0]
["Transit and ground passenger transportation",485,492.3,null,0]
["Taxi and limousine service(1)",4853,73.599999999999994,null,0]
["Taxi service(1)",48531,35.299999999999997,null,0]
["Limousine service(1)",48532,38.200000000000003,null,0]
["School and employee bus transportation(1)",4854,201.4,null,0]
["Urban, interurban, rural, and charter bus transportation(1)","4851,2,5",105.5,null,0]
["Other ground passenger transportation(1)",4859,112.4,null,0]
["Pipeline transportation",486,47.4,null,0]
["Scenic and sightseeing transportation",487,34.299999999999997,null,0]
["Support activities for transportation",488,718.6,null,0]
["Support activities for air transportation(1)",4881,227.3,null,0]
["Airport operations(1)",48811,107.3,null,0]
["Support activities for water transportation(1)",4883,94.3,null,0]
["Marine cargo handling(1)",48832,63.1,null,0]
["Support activities for water transportation, except marine cargo(1)","48831,3,9",31.5,null,0]
["Support activities for road transportation(1)",4884,101.5,null,0]
["Motor vehicle towing(1)",48841,66.5,null,0]
["Freight transportation arrangement(1)",4885,230.8,"x",230.8]
["Support activities for other transportation, including rail(1)","4882,9",64.7,null,0]
["Couriers and messengers",492,751.7,null,0]
["Couriers and express delivery services(1)",4921,649.5,"x",649.5]
["Local messengers and delivery and private postal service(1)",49111221,101.4,null,0]
["Warehousing and storage",493,1189,null,0]
["General warehousing and storage(1)",49311,1059.5999999999999,null,0]
["Refrigerated warehousing and storage(1)",49312,66.3,null,0]
["Miscellaneous warehousing and storage(1)","49313,9",62.8,null,0]
[null,null,null,null,0]
["Utilities",22,552,null,0]
["Power generation and supply(1)",2211,388.4,null,0]
["Electric power generation(1)",22111,152.4,null,0]
["Fossil fuel electric power generation(1)",221112,89.3,null,{"$f":"IF(D521=\"x\",C521,0)","v":0}]
["Nuclear and other electric power generation(1)","221111,3-8",63.4,null,0]
["Electric power transmission and distribution(1)",22112,235.7,null,0]
["Electric bulk power transmission and control(1)",221121,26.6,null,0]
["Electric power distribution(1)",221122,209.2,null,0]
["Natural gas distribution(1)",2212,111,null,0]
["Water, sewage and other systems(1)",2213,52.5,null,0]
[null,null,null,null,0]
["Information",51,2802,null,0,{"$f":"SUM(E529:E556)/C529","v":0.79011420413989997}]
["Publishing industries, except Internet",511,735.6,null,0]
["Newspaper, book, and directory publishers(1)",5111,311,null,0]
["Newspaper publishers(1)",51111,137.80000000000001,"x",137.80000000000001]
["Periodical publishers(1)",51112,85.6,"x",85.6]
["Book publishers(1)",51113,59.3,"x",59.3]
["Directory, mailing list, and other publishers(1)","51114,9",28.4,"x",28.4]
["Software publishers(1)",5112,425.1,"x",425.1]
["Motion picture and sound recording industries",512,417.6,null,0]
["Motion picture and video production(1)",51211,237.2,null,0]
["Motion picture and video exhibition(1)",51213,150.30000000000001,null,0]
["Broadcasting, except Internet",515,267.89999999999998,null,0]
["Radio and television broadcasting(1)",5151,215.4,null,0]
["Radio broadcasting(1)",51511,81.599999999999994,null,0]
["Television broadcasting(1)",51512,133.69999999999999,null,0]
["Cable and other subscription programming(1)",5152,52.9,"x",52.9]
["Telecommunications",517,719.5,null,0]
["Wired and wireless telecommunications carriers(1)",5173,630.5,null,0]
["Wired telecommunications carriers(1)",517311,517.5,"x",517.5]
["Wireless telecommunications carriers, except satellite(1)",517312,112.8,"x",112.8]
["Other telecommunications(1)","5174,9",87.8,"x",87.8]
["Telecommunications resellers(1)",517911,46.3,"x",46.3]
["Data processing, hosting and related services",518,332.2,"x",332.2]
["Other information services",519,328.7,null,0]
["Internet publishing and broadcasting and web search portals(1)",51913,263.7,"x",263.7]
["All other information services(1)","51911,2,9",64.5,"x",64.5]
[null,null,null,null,0]
["Financial activities(3)",null,8650,null,0]
["Finance and insurance",52,6331.4,null,0,{"$f":"SUM(E557:E598)/C557","v":0.9922765896958019}]
["Monetary authorities - central bank",521,19.7,"x",19.7]
["Credit intermediation and related activities",522,2630.9,"x",2630.9]
["Depository credit intermediation",5221,1709.5,"x",1709.5]
["Commercial banking",52211,1307.4000000000001,"x",1307.4000000000001]
["Savings institutions(1)",52212,112.1,null,0]
["Credit unions and other depository credit intermediation(1)","52213,9",290,null,0]
["Nondepository credit intermediation",5222,615,"x",615]
["Credit card issuing(1)",52221,84.9,null,0]
["Sales financing(1)",52222,98.6,null,0]
["Other nondepository credit intermediation(1)",52229,430.5,null,0]
["Consumer lending(1)",522291,100.1,null,0]
["Real estate credit(1)",522292,237,null,0]
["Miscellaneous nondepository credit intermediation(1)","522293,4,8",93.1,null,0]
["Activities related to credit intermediation",5223,306.39999999999998,null,0]
["Mortgage and nonmortgage loan brokers(1)",52231,85.9,null,0]
["Financial transaction processing and clearing(1)",52232,135.5,null,0]
["Other credit intermediation activities(1)",52239,84.9,null,0]
["Securities, commodity contracts, investments, and funds and trusts","523,5",970.2,null,0]
["Securities brokerage(1)",52312,281.60000000000002,null,0]
["Securities and commodity contracts brokerage and exchanges(1)","5231,2",465.3,null,0]
["Other financial investment activities, including funds and trusts(1)","5239; 525",505,null,0]
["Miscellaneous intermediation(1)",52391,27,null,0]
["Portfolio management(1)",52392,215.3,null,0]
["Investment advice(1)",52393,200.7,null,0]
["All other financial investment activities, including funds and trusts(1)","52399; 525",62.1,null,0]
["Insurance carriers and related activities",524,2710.6,null,0]
["Insurance carriers(1)",5241,1533.8,null,0]
["Direct life and health insurance carriers(1)",52411,882.9,null,{"$f":"IF(D585=\"x\",C585,0)","v":0}]
["Direct life insurance carriers(1)",524113,337.8,null,0]
["Direct health and medical insurance carriers(1)",524114,543.9,null,0]
["Direct insurers, except life and health(1)",52412,621.79999999999995,null,0]
["Direct property and casualty insurers(1)",524126,523.4,null,0]
["Direct title insurance and other direct insurance carriers(1)","524127,8",98.1,null,0]
["Reinsurance carriers(1)",52413,30.4,null,0]
["Insurance agencies, brokerages, and related services(1)",5242,1176.8,null,0]
["Insurance agencies and brokerages(1)",52421,836.1,null,0]
["Other insurance-related activities(1)",52429,341.2,null,0]
["Claims adjusting(1)",524291,52.9,null,0]
["Third-party administration of insurance funds(1)",524292,203.5,null,0]
["All other insurance-related activities(1)",524298,84.5,null,0]
["Real estate and rental and leasing",53,2318.1,null,0]
["Real estate",531,1701.2,null,0,{"$f":"SUM(E599:E623)/C598","v":0.95185712436909542}]
["Lessors of real estate(1)",5311,611.29999999999995,null,0]
["Lessors of residential buildings(1)",53111,361.4,null,0]
["Lessors of nonresidential buildings(1)",53112,151.6,"x",151.6]
["Miniwarehouse and self-storage unit operators(1)",53113,57.4,null,0]
["Lessors of other real estate property(1)",53119,40.5,"x",40.5]
["Offices of real estate agents and brokers(1)",5312,359.6,"x",359.6]
["Activities related to real estate(1)",5313,730.2,"x",730.2]
["Real estate property managers(1)",53131,634,"x",634]
["Residential property managers(1)",531311,463.4,null,0]
["Nonresidential property managers(1)",531312,171,"x",171]
["Offices of real estate appraisers(1)",53132,33.799999999999997,"x",33.799999999999997]
["Other activities related to real estate(1)",53139,62.7,"x",62.7]
["Rental and leasing services",532,593.79999999999995,null,0]
["Automotive equipment rental and leasing(1)",5321,231,null,0]
["Passenger car rental and leasing(1)",53211,138,null,0]
["Truck, trailer, and RV rental and leasing(1)",53212,93.2,null,0]
["Consumer goods rental(1)",5322,140.69999999999999,null,0]
["Video tape and disc rental(1)",532282,8.3000000000000007,null,0]
["Home health equipment rental(1)",532283,36.799999999999997,null,0]
["General rental centers(1)",5323,37.200000000000003,null,0]
["Machinery and equipment rental and leasing(1)",5324,184.1,null,0]
["Heavy machinery rental and leasing(1)",53241,98.8,null,0]
["Office equipment and other machinery rental and leasing(1)","53242,9",85.2,null,0]
["Lessors of nonfinancial intangible assets",533,23.1,"x",23.1]
[null,null,null,null,0]
["Professional and business services",null,21394,null,0,{"$f":"SUM(E625:E676)/C626","v":0.95268277837826498}]
["Professional and technical services",54,9529.2999999999993,null,0]
["Legal services",5411,1141,null,0]
["Offices of lawyers(1)",54111,1052.0999999999999,"x",1052.0999999999999]
["Other legal services(1)",54119,88.5,"x",88.5]
["Title abstract and settlement offices(1)",541191,58.9,"x",58.9]
["Accounting and bookkeeping services",5412,1043.7,null,0]
["Offices of certified public accountants(1)",541211,491.3,"x",491.3]
["Tax preparation services(1)",541213,101.1,"x",101.1]
["Payroll services(1)",541214,191,"x",191]
["Other accounting services(1)",541219,260.60000000000002,null,0]
["Architectural and engineering services",5413,1512.6,null,0]
["Architectural services(1)",54131,200.2,"x",200.2]
["Landscape architectural services(1)",54132,34.1,"x",34.1]
["Engineering and drafting services(1)","54133,4",1006.2,"x",1006.2]
["Building inspection, surveying, and mapping services(1)","54135,6,7",96.6,"x",96.6]
["Testing laboratories(1)",54138,175.5,null,0]
["Specialized design services",5414,150.30000000000001,null,0]
["Interior design services(1)",54141,46.3,"x",46.3]
["Graphic design services(1)",54143,64.900000000000006,"x",64.900000000000006]
["Computer systems design and related services",5415,2197.8000000000002,null,0]
["Custom computer programming services(1)",541511,952.9,"x",952.9]
["Computer systems design services(1)",541512,1041,"x",1041]
["Computer facilities management services(1)",541513,76.900000000000006,"x",76.900000000000006]
["Other computer-related services(1)",541519,125.5,"x",{"$f":"IF(D649=\"x\",C649,0)","v":125.5}]
["Management and technical consulting services",5416,1521.8,null,0]
["Management consulting services(1)",54161,1237.5999999999999,"x",1237.5999999999999]
["Administrative management consulting services(1)",541611,644.9,"x",644.9]
["Human resource consulting services(1)",541612,83.4,"x",83.4]
["Marketing consulting services(1)",541613,269.39999999999998,"x",269.39999999999998]
["Process and logistics consulting services(1)",541614,133.6,"x",133.6]
["Other management consulting services(1)",541618,106.8,"x",106.8]
["Environmental consulting services(1)",54162,86,"x",86]
["Other technical consulting services(1)",54169,198.4,"x",198.4]
["Scientific research and development services",5417,721.8,null,0]
["Research and development in the physical, engineering, and life sciences(1)",54171,655.7,null,0]
["Research and development in nanotechnology(1)",541713,21,null,0]
["Research and development in biotechnology, except nanobiotechnology(1)",541714,203.3,null,0]
["Research and development in the physical, engineering, and life sciences, except nanotechnology and biotechnology(1)",541715,431,null,0]
["Social science and humanities research(1)",54172,66,null,0]
["Advertising and related services",5418,486.8,null,0]
["Advertising agencies(1)",54181,203.6,"x",203.6]
["Public relations agencies(1)",54182,61.7,"x",61.7]
["Media buying agencies and media representatives(1)","54183,4",35.9,"x",35.9]
["Display advertising(1)",54185,37.299999999999997,"x",37.299999999999997]
["Direct mail advertising(1)",54186,39.700000000000003,"x",39.700000000000003]
["Advertising material distribution and other advertising services(1)","54187,9",109.4,null,0]
["Other professional and technical services",5419,753.4,null,0]
["Marketing research and public opinion polling(1)",54191,86.4,"x",86.4]
["Photographic services(1)",54192,45.7,null,0]
["Veterinary services(1)",54194,394.7,null,0]
["Miscellaneous professional and technical services(1)","54193,9",226.2,"x",226.2]
["Management of companies and enterprises",55,2408.9,null,0,{"$f":"SUM(E677:E680)/C677","v":1.0000415127236497}]
["Offices of bank holding companies and of other holding companies(1)","551111,2",89.7,"x",89.7]
["Managing offices(1)",551114,2319.3000000000002,"x",2319.3000000000002]
["Administrative and waste services",56,9455.7999999999993,null,0]
["Administrative and support services",561,9001.9,null,0,{"$f":"SUM(E681:E727)/C680","v":0.60245563569449445}]
["Office administrative services",5611,528.9,null,0]
["Facilities support services",5612,154.69999999999999,null,0]
["Employment services",5613,3716.2,null,0]
["Employment placement agencies and executive search services(1)",56131,299.10000000000002,"x",299.10000000000002]
["Employment placement agencies(1)",561311,257.7,"x",257.7]
["Executive search services(1)",561312,41.1,"x",41.1]
["Temporary help services(1)",56132,3039.9,"x",3039.9]
["Professional employer organizations(1)",56133,377.6,"x",377.6]
["Business support services",5614,894.6,null,0]
["Document preparation services(1)",56141,50,"x",50]
["Telephone call centers(1)",56142,512.79999999999995,"x",512.79999999999995]
["Telephone answering services(1)",561421,36.299999999999997,"x",36.299999999999997]
["Telemarketing bureaus(1)",561422,476.6,"x",476.6]
["Business service centers(1)",56143,81.3,"x",81.3]
["Collection agencies(1)",56144,124.4,"x",124.4]
["Credit bureaus(1)",56145,22.3,"x",22.3]
["Other business support services(1)",56149,104.3,null,0]
["Travel arrangement and reservation services",5615,215.2,null,0]
["Travel agencies(1)",56151,90.2,"x",90.2]
["Tour operators(1)",56152,27.4,null,0]
["Other travel arrangement services(1)",56159,97.8,"x",97.8]
["Investigation and security services",5616,957.2,null,0]
["Security and armored car services(1)",56161,805.8,null,0]
["Investigation services(1)",561611,37.9,"x",37.9]
["Security guards and patrols and armored car services(1)","561612,3",768.1,null,0]
["Security systems services(1)",56162,151.69999999999999,"x",151.69999999999999]
["Services to buildings and dwellings",5617,2198.3000000000002,null,0]
["Exterminating and pest control services(1)",56171,129.19999999999999,null,0]
["Janitorial services(1)",56172,1107.3,null,0]
["Landscaping services(1)",56173,820.7,null,0]
["Carpet and upholstery cleaning services(1)",56174,42.9,null,0]
["Other services to buildings and dwellings(1)",56179,97.2,null,{"$f":"IF(D713=\"x\",C713,0)","v":0}]
["Other support services",5619,336.9,null,0]
["Packaging and labeling services(1)",56191,59.6,null,0]
["Convention and trade show organizers(1)",56192,64.8,null,0]
["All other support services(1)",56199,212.7,null,0]
["Waste management and remediation services",562,453.9,null,0]
["Waste collection(1)",5621,188.4,null,0]
["Waste treatment and disposal(1)",5622,100.6,null,0]
["Hazardous waste treatment and disposal(1)",562211,37.700000000000003,null,0]
["Nonhazardous waste treatment and disposal(1)","562212,3,9",62.8,null,0]
["Remediation and other waste services(1)",5629,165,null,0]
["Remediation services(1)",56291,90.5,null,0]
["Materials recovery facilities and other waste management services(1)","56292,9",74.400000000000006,null,0]
[null,null,null,null,0]
["Education and health services",null,24144,null,0]
["Educational services",61,3776.8,null,0,{"$f":"SUM(E728:E740)/C728","v":6.2433806396949801E-2}]
["Elementary and secondary schools(1)",6111,1104.7,null,0]
["Junior colleges(1)",6112,50.8,null,0]
["Colleges and universities(1)",6113,1826,null,0]
["Business, computer, and management training(1)",6114,74.400000000000006,"x",74.400000000000006]
["Business and secretarial schools and computer training(1)","61141,2",21.7,null,0]
["Management training(1)",61143,52.6,null,0]
["Technical and trade schools(1)",6115,115.4,null,0]
["Other schools and instruction(1)",6116,448.7,null,0]
["Fine arts schools(1)",61161,107,null,0]
["Sports and recreation instruction(1)",61162,142.6,null,0]
["Miscellaneous schools and instruction(1)","61163,9",198.4,null,0]
["Educational support services(1)",6117,161.4,"x",161.4]
["Health care and social assistance",62,20366.8,null,0,{"$f":"SUM(E741:E796)/C741","v":0.23438144431133023}]
["Health care(4)","621,2,3",16337.4,null,0]
["Ambulatory health care services",621,7718.5,null,0]
["Offices of physicians",6211,2671.1,null,0]
["Offices of physicians, except mental health(1)",621111,2610.5,"x",2610.5]
["Offices of mental health physicians(1)",621112,60.5,"x",60.5]
["Offices of dentists",6212,984.2,"x",984.2]
["Offices of other health practitioners",6213,964.3,null,0]
["Offices of chiropractors(1)",62131,137.69999999999999,"x",137.69999999999999]
["Offices of optometrists(1)",62132,138,"x",138]
["Offices of mental health practitioners(1)",62133,110.6,"x",110.6]
["Offices of specialty therapists(1)",62134,422.5,"x",422.5]
["Offices of all other health practitioners(1)",62139,154.80000000000001,"x",154.80000000000001]
["Offices of podiatrists(1)",621391,33.6,"x",33.6]
["Offices of miscellaneous health practitioners(1)",621399,121.2,"x",121.2]
["Outpatient care centers",6214,967.5,null,0]
["Outpatient mental health centers(1)",62142,251.2,null,0]
["Outpatient care centers, except mental health(1)","62141,9",716.4,null,0]
["HMO medical centers(1)",621491,214.5,null,0]
["Kidney dialysis centers(1)",621492,139.1,null,0]
["Freestanding emergency medical centers(1)",621493,157.69999999999999,null,0]
["Miscellaneous outpatient care centers(1)","621410,98",205,null,0]
["Medical and diagnostic laboratories",6215,288.7,null,0]
["Medical laboratories(1)",621511,209.9,null,0]
["Diagnostic imaging centers(1)",621512,78.8,null,0]
["Home health care services",6216,1531.6,null,0]
["Other ambulatory health care services",6219,311,null,0]
["Ambulance services(1)",62191,173.8,null,0]
["All other ambulatory health care services(1)",62199,137.1,null,0]
["Blood and organ banks(1)",621991,74.5,null,0]
["Miscellaneous ambulatory health care services(1)",621999,62.6,null,0]
["Hospitals",622,5228.6000000000004,null,0]
["General medical and surgical hospitals(1)",6221,4800,null,0]
["Psychiatric and substance abuse hospitals(1)",6222,154,null,0]
["Other hospitals(1)",6223,273.7,null,0]
["Nursing and residential care facilities",623,3390.3,null,0]
["Nursing care facilities",6231,1606.4,null,{"$f":"IF(D777=\"x\",C777,0)","v":0}]
["Residential mental health facilities",6232,651,null,0]
["Residential intellectual and developmental disability facilities(1)",62321,406.8,null,0]
["Residential mental health and substance abuse facilities(1)",62322,244.2,null,0]
["Community care facilities for the elderly",6233,963.1,null,0]
["Continuing care retirement communities(1)",623311,504.3,null,0]
["Assisted living facilities for the elderly(1)",623312,458.4,null,0]
["Other residential care facilities",6239,169.9,null,0]
["Social assistance",624,4029.4,null,0]
["Individual and family services",6241,2544.8000000000002,null,0]
["Child and youth services(1)",62411,210.8,null,0]
["Services for the elderly and persons with disabilities(1)",62412,1883.6,null,0]
["Other individual and family services(1)",62419,451.3,null,0]
["Emergency and other relief services",6242,176.5,null,0]
["Community food services(1)",62421,36.4,null,0]
["Community housing, emergency, and relief services(1)","62422,3",140.19999999999999,null,0]
["Vocational rehabilitation services",6243,328.3,null,0]
["Child day care services",6244,979.7,null,0]
[null,null,null,null,0]
["Leisure and hospitality",null,16695]
["Arts, entertainment, and recreation",71,2469.4]
["Performing arts and spectator sports",711,517.4]
["Performing arts companies(1)",7111,131.80000000000001]
["Musical groups and artists(1)",71113,41.4]
["Theater, dance, and other performing arts companies(1)","71111,2,9",90.6]
["Spectator sports(1)",7112,161.80000000000001]
["Sports teams and clubs(1)",711211,105.1]
["Racetracks(1)",711212,34.4]
["Other spectator sports(1)",711219,21.8]
["Arts and sports promoters and agents and managers for public figures(1)","7113,4",170.8]
["Independent artists, writers, and performers(1)",7115,50.4]
["Museums, historical sites, and similar institutions",712,175.8]
["Museums(1)",71211,101.5]
["Historical sites and other similar institutions(1)","71212,3,9",74.099999999999994]
["Amusements, gambling, and recreation",713,1776.2]
["Amusement parks and arcades(1)",7131,216.5]
["Gambling industries(1)",7132,121.3]
["Casinos, except casino hotels(1)",71321,81.5]
["Other gambling industries(1)",71329,39.799999999999997]
["Other amusement and recreation industries(1)",7139,1435.9]
["Golf courses and country clubs(1)",71391,391.7]
["Skiing facilities(1)",71392,50.4]
["Marinas(1)",71393,37.9]
["Fitness and recreational sports centers(1)",71394,656.8]
["Bowling centers(1)",71395,73.099999999999994]
["All other amusement and recreation industries(1)",71399,224.1]
["Accommodation and food services",72,14225.2]
["Accommodation",721,2045.8]
["Traveler accommodation(1)",7211,1973.2]
["Hotels and motels, except casino hotels(1)",72111,1658.5]
["Casino hotels(1)",72112,271.5]
["Other traveler accommodation(1)",72119,42.9]
["Bed-and-breakfast inns(1)",721191,15.4]
["All other traveler accommodation and rooming and boarding houses(1)",721310199,27.6]
["RV parks and recreational camps(1)",7212,74.3]
["RV parks and campgrounds(1)",721211,32.1]
["Recreational and vacation camps(1)",721214,42.9]
["Food services and drinking places",722,12179.4]
["Special food services(1)",7223,729.6]
["Food service contractors(1)",72231,514.4]
["Caterers and mobile food services(1)","72232,3",214.6]
["Drinking places, alcoholic beverages(1)",7224,398.6]
["Restaurants and other eating places(1)",7225,11045.3]
["Full-service restaurants(1)",722511,5633.3]
["Limited-service restaurants(1)",722513,4542.2]
["Cafeterias, grill buffets, and buffets(1)",722514,120.7]
["Snack and nonalcoholic beverage bars(1)",722515,747.7]
[]
["Other services",81,5925,null,{"$f":"IF(D845=\"x\",C845,0)","v":0},{"$f":"SUM(E845:E895)/C845","v":0.88892827004219399}]
["Repair and maintenance",811,1353.3,null,0]
["Automotive repair and maintenance(1)",8111,959.8,null,0]
["Automotive mechanical and electrical repair(1)",81111,408.3,null,0]
["General automotive repair(1)",811111,358.7,null,0]
["Automotive exhaust system and transmission repair(1)","811112,3",23.8,null,0]
["Other automotive mechanical and elec. repair(1)",811118,25.9,null,0]
["Automotive body, interior, and glass repair(1)",81112,282.3,null,0]
["Automotive body and interior repair(1)",811121,248.2,null,0]
["Automotive glass replacement shops(1)",811122,34.1,null,0]
["Other automotive repair and maintenance(1)",81119,267.89999999999998,null,0]
["Car washes(1)",811192,178.5,null,0]
["Auto oil change shops and all other auto repair and maintenance(1)","811191,8",89.1,null,0]
["Electronic equipment repair and maintenance(1)",8112,105.4,null,0]
["Computer and office machine repair(1)",811212,40.700000000000003,null,0]
["Miscellaneous electronic equipment repair and maintenance(1)","811211,3,9",64.7,null,0]
["Commercial machinery repair and maintenance(1)",8113,210.9,null,0]
["Household goods repair and maintenance(1)",8114,77.099999999999994,null,0]
["Personal and laundry services",812,1536,null,0]
["Personal care services(1)",8121,745.5,null,0]
["Hair, nail, and skin care services(1)",81211,577.1,null,0]
["Barber shops and beauty salons(1)","812111,2",461.4,null,0]
["Nail salons(1)",812113,115.4,null,0]
["Other personal care services(1)",81219,169,null,0]
["Death care services(1)",8122,134.9,null,0]
["Funeral homes and funeral services(1)",81221,103.6,null,0]
["Cemeteries and crematories(1)",81222,31.1,null,0]
["Drycleaning and laundry services(1)",8123,297.7,null,0]
["Coin-operated laundries and drycleaners(1)",81231,42.2,null,0]
["Drycleaning and laundry services, except coin-operated(1)",81232,122.7,null,0]
["Linen and uniform supply(1)",81233,132.80000000000001,null,0]
["Linen supply(1)",812331,65.900000000000006,null,0]
["Industrial launderers(1)",812332,66.7,null,0]
["Other personal services(1)",8129,356.8,null,0]
["Pet care services, except veterinary(1)",81291,127.2,null,0]
["Parking lots and garages(1)",81293,148,null,0]
["All other personal services, including photofinishing(1)","81292,9",82.3,null,0]
["Membership associations and organizations",813,3035.9,"x",3035.9]
["Grantmaking and giving services(1)",8132,186.6,"x",186.6]
["Grantmaking foundations(1)",813211,112.5,"x",112.5]
["Voluntary health organizations(1)",813212,36.9,"x",36.9]
["Other grantmaking and giving services(1)",813219,37.200000000000003,"x",37.200000000000003]
["Social advocacy organizations(1)",8133,241.4,"x",241.4]
["Human rights organizations(1)",813311,48.6,"x",48.6]
["Environment, conservation, and other social advocacy organizations(1)","813312,9",192.3,"x",192.3]
["Civic and social organizations(1)",8134,398.8,"x",398.8]
["Professional and similar organizations(1)",8139,488.8,"x",488.8]
["Business associations(1)",81391,118.7,"x",118.7]
["Professional organizations(1)",81392,86.3,"x",86.3]
["Labor unions and similar labor organizations(1)",81393,114.9,"x",114.9]
["Miscellaneous professional and similar organizations(1)","81394,9",168,"x",168]
[null,null,null,null,0]
["Government",null,22529,null,0,{"$f":"SUM(E897:E917)/C897","v":0.32686759288028761}]
["Federal",null,2811,null,0]
["Federal, except U.S. Postal Service",null,2204.6,null,0]
["Federal hospitals(1)",null,354.8,null,0]
["Department of Defense(1)",null,531.79999999999995,null,0]
["U.S. Postal Service(5)",null,606.29999999999995,null,0]
["Other Federal government(1)",null,1316.6,"x",1316.6]
["State government",null,5178,null,0]
["State government education",null,2485.1999999999998,null,{"$f":"IF(D905=\"x\",C905,0)","v":0}]
["State government, excluding education",null,2692.7,null,0]
["State hospitals(1)",null,384.9,null,0]
["State government general administration(1)",null,1809.9,"x",1809.9]
["Other State government(1)",null,499.3,null,0]
["Local government",null,14540,null,0]
["Local government education",null,7992.4,null,0]
["Local government, excluding education",null,6548,null,0]
["Local government utilities(1)",null,247.4,null,0]
["Local government transportation(1)",null,288.39999999999998,null,0]
["Local hospitals(1)",null,683.8,null,0]
["Local government general administration(1)",null,4237.5,"x",4237.5]
["Other local government(1)",null,1093.0999999999999,null,0]
["Footnotes"]
["(1) Seasonally Adjusted Independently. See https://www.bls.gov/web/empsit/cestn.htm#SA_ind for details."]
["(2) Includes motor vehicles, motor vehicle bodies and trailers, and motor vehicle parts."]
["(3) Excludes nonoffice commissioned real estate sales agents."]
["(4) Includes ambulatory health care services, hospitals, and nursing and residential care facilities."]
["(5) Includes rural mail carriers."]
["(P) Preliminary"]

{"sheet":"Business Summary","index":3,"n_rows":104,"n_cols":5,"rows_kept":104,"cut":false,"hidden":false,"merged":[[6,0,6,4],[99,0,99,4],[103,0,103,4],[1,0,1,4],[2,0,2,4],[3,0,3,4],[4,0,4,4],[5,0,5,4]]}
[null,""]
["Business Summary"]
["4400 Post Oak Pkwy, Houston, Texas, 77027 2"]
["4400 Post Oak Pkwy, Houston, Texas, 77027"]
["Drive time: 10 minute radii"]
["Latitude: 29.74778"]
["Longitude: -95.45172"]
[]
["Data for all businesses in area",null,"10 minutes"]
["Total Businesses:",null,21566]
["Total Employees:",null,235643]
["Total Population:",null,178958]
["Employee/Population Ratio (per 100 Residents)",null,132]
[]
[null,"Businesses",null,"Employees"]
["by SIC Codes","Number","Percent","Number","Percent"]
["Agriculture & Mining",452,2.1000000000000001E-2,10624,4.4999999999999998E-2]
["Construction",929,4.2999999999999997E-2,9521,0.04]
["Manufacturing",426,0.02,9764,4.0999999999999995E-2]
["Transportation",426,0.02,10145,4.2999999999999997E-2]
["Communication",156,6.9999999999999993E-3,4128,1.8000000000000002E-2]
["Utility",97,4.0000000000000001E-3,3083,1.3000000000000001E-2]
["Wholesale Trade",431,0.02,5182,2.2000000000000002E-2]
[]
["Retail Trade Summary",3196,0.14800000000000002,42395,0.18]
["Home Improvement",104,5.0000000000000001E-3,1232,5.0000000000000001E-3]
["General Merchandise Stores",95,4.0000000000000001E-3,3451,1.4999999999999999E-2]
["Food Stores",257,1.2E-2,4016,1.7000000000000001E-2]
["Auto Dealers & Gas Stations",211,0.01,2374,0.01]
["Apparel & Accessory Stores",400,1.9E-2,3805,1.6E-2]
["Furniture & Home Furnishings",227,1.1000000000000001E-2,2298,0.01]
["Eating & Drinking Places",1119,5.2000000000000005E-2,19642,8.3000000000000004E-2]
["Miscellaneous Retail",783,3.6000000000000004E-2,5578,2.4E-2]
[]
["Finance, Insurance, Real Estate Summary",3338,0.155,35269,0.15]
["Banks, Savings & Lending Institutions",394,1.8000000000000002E-2,4615,0.02]
["Securities Brokers",784,3.6000000000000004E-2,7529,3.2000000000000001E-2]
["Insurance Carriers & Agents",393,1.8000000000000002E-2,5384,2.3E-2]
["Real Estate, Holding, Other Investment Offices",1766,8.199999999999999E-2,17742,7.4999999999999997E-2]
[]
["Services Summary",9033,0.41899999999999998,100595,0.42700000000000005]
["Hotels & Lodging",136,6.0000000000000001E-3,5000,2.1000000000000001E-2]
["Automotive Services",255,1.2E-2,1650,6.9999999999999993E-3]
["Movies & Amusements",385,1.8000000000000002E-2,3243,1.3999999999999999E-2]
["Health Services",1519,7.0000000000000007E-2,14674,6.2E-2]
["Legal Services",1405,6.5000000000000002E-2,10239,4.2999999999999997E-2]
["Education Institutions & Libraries",234,1.1000000000000001E-2,6533,2.7999999999999997E-2]
["Other Services",5099,0.23600000000000002,59256,0.251]
[]
["Government",126,6.0000000000000001E-3,3626,1.4999999999999999E-2]
[]
["Unclassified Establishments",2956,0.13699999999999998,1310,6.0000000000000001E-3]
[]
["Totals",21566,"100.0%",235643,"100.0%"]
[]
[null,"Businesses",null,"Employees"]
["by NAICS Codes","Number","Percent","Number","Percent"]
["Agriculture, Forestry, Fishing & Hunting",70,3.0000000000000001E-3,237,1E-3]
["Mining",234,1.1000000000000001E-2,8032,3.4000000000000002E-2]
["Utilities",52,2E-3,2377,0.01]
["Construction",1043,4.8000000000000001E-2,11540,4.9000000000000002E-2]
["Manufacturing",450,2.1000000000000001E-2,7968,3.4000000000000002E-2]
["Wholesale Trade",420,1.9E-2,5081,2.2000000000000002E-2]
["Retail Trade",1973,9.0999999999999998E-2,22100,9.4E-2]
["Motor Vehicle & Parts Dealers",165,8.0000000000000002E-3,1998,8.0000000000000002E-3]
["Furniture & Home Furnishings Stores",142,6.9999999999999993E-3,1543,6.9999999999999993E-3]
["Electronics & Appliance Stores",68,3.0000000000000001E-3,679,3.0000000000000001E-3]
["Building Material & Garden Equipment & Supplies Dealers",104,5.0000000000000001E-3,1232,5.0000000000000001E-3]
["Food & Beverage Stores",201,9.0000000000000011E-3,3600,1.4999999999999999E-2]
["Health & Personal Care Stores",190,9.0000000000000011E-3,1431,6.0000000000000001E-3]
["Gasoline Stations & Fuel Dealers",50,2E-3,397,2E-3]
["Clothing, Clothing Accessories, Shoe and Jewelry Stores",558,2.6000000000000002E-2,4903,2.1000000000000001E-2]
["Sporting Goods, Hobby, Book, & Music Stores",330,1.4999999999999999E-2,2398,0.01]
["General Merchandise Stores",167,8.0000000000000002E-3,3919,1.7000000000000001E-2]
["Transportation & Warehousing",317,1.4999999999999999E-2,8885,3.7999999999999999E-2]
["Information",463,2.1000000000000001E-2,9856,4.2000000000000003E-2]
["Finance & Insurance",1628,7.4999999999999997E-2,18905,0.08]
["Central Bank/Credit Intermediation & Related Activities",380,1.8000000000000002E-2,4487,1.9E-2]
["Securities & Commodity Contracts",849,3.9E-2,8633,3.7000000000000005E-2]
["Funds, Trusts & Other Financial Vehicles",400,1.9E-2,5784,2.5000000000000001E-2]
["Real Estate, Rental & Leasing",1561,7.2000000000000008E-2,14283,6.0999999999999999E-2]
["Professional, Scientific & Tech Services",3776,0.17499999999999999,43147,0.183]
["Legal Services",1491,6.9000000000000006E-2,10848,4.5999999999999999E-2]
["Management of Companies & Enterprises",145,6.9999999999999993E-3,1116,5.0000000000000001E-3]
["Administrative, Support & Waste Management Services",739,3.4000000000000002E-2,7770,3.3000000000000002E-2]
["Educational Services",310,1.3999999999999999E-2,7127,0.03]
["Health Care & Social Assistance",1812,8.4000000000000005E-2,18519,7.9000000000000001E-2]
["Arts, Entertainment & Recreation",332,1.4999999999999999E-2,4421,1.9E-2]
["Accommodation & Food Services",1283,5.9000000000000004E-2,24843,0.105]
["Accommodation",136,6.0000000000000001E-3,5000,2.1000000000000001E-2]
["Food Services & Drinking Places",1147,5.2999999999999999E-2,19844,8.4000000000000005E-2]
["Other Services (except Public Administration)",1878,8.6999999999999994E-2,14504,6.2E-2]
["Automotive Repair & Maintenance",175,8.0000000000000002E-3,1164,5.0000000000000001E-3]
["Public Administration",126,6.0000000000000001E-3,3640,1.4999999999999999E-2]
[]
["Unclassified Establishments",2951,0.13699999999999998,1293,5.0000000000000001E-3]
[]
["Total",21566,"100.0%",235643,"100.0%"]
[]
["Source:  Copyright 2024 Data Axle, Inc. All rights reserved. Esri Total Population forecasts for 2024.\n\n\n"]
[]
["Date Note: Data on the Business Summary report is calculated using \n\n","Esri’s Data allocation method","which uses census block groups to allocate business summary data to custom areas."]
[]
["©2024 Esri"]

{"sheet":"Executive Summary","index":4,"n_rows":106,"n_cols":3,"rows_kept":106,"cut":false,"hidden":false,"merged":[[79,1,79,2],[98,1,98,2],[103,0,103,2],[105,0,105,2],[1,0,1,2],[2,0,2,2],[3,0,3,2],[4,0,4,2],[5,0,5,2],[8,1,8,2],[30,1,30,2],[42,1,42,2],[55,1,55,2],[58,1,58,2],[63,1,63,2],[68,1,68,2],[73,1,73,2]]}
[null,""]
["Executive Summary"]
["4400 Post Oak Pkwy, Houston, Texas, 77027"]
["Drive time: 10 minute radii"]
["Latitude: 29.74778"]
["Longitude: -95.45180"]
[]
[null,null,"10 minutes"]
[null,"Population"]
[null,"2010 Population",236352]
[null,"2020 Population",267972]
[null,"2024 Population",283561]
[null,"2029 Population",289473]
[null,"2010-2020 Annual Rate",1.26E-2]
[null,"2020-2024 Annual Rate",1.34E-2]
[null,"2024-2029 Annual Rate",4.0999999999999995E-3]
[]
[null,"2020 Male Population",0.5]
[null,"2020 Female Population",0.5]
[null,"2020 Median Age",35.9]
[]
[null,"2024 Male Population",0.50600000000000001]
[null,"2024 Female Population",0.49399999999999999]
[null,"2024 Median Age",36.5]
[]
[null,"In the identified area, the current year population is 283,561. In 2020, the Census count in the area was 267,972.  The rate of change since 2020 was 1.34% annually. The five-year projection for the population in the area is 289,473 representing a change of 0.41% annually from 2024 to 2029. Currently, the population is 50.6% male and 49.4% female."]
[]
[null,"Median Age"]
[null,"The median age in this area is 36.5, compared to U.S. median age of 39.3."]
[]
[null,"Race and Ethnicity"]
[null,"2024 White Alone",0.51800000000000002]
[null,"2024 Black Alone",8.4000000000000005E-2]
[null,"2024 American Indian/Alaska Native Alone",0.01]
[null,"2024 Asian Alone",0.111]
[null,"2024 Pacific Islander Alone",0]
[null,"2024 Other Race",0.128]
[null,"2024 Two or More Races",0.14899999999999999]
[null,"2024 Hispanic Origin (Any Race)",0.30299999999999999]
[]
[null,"Persons of Hispanic origin represent 30.3% of the population in the identified area compared to 19.6% of the U.S. population. Persons of Hispanic Origin may be of any race. The Diversity Index, which measures the probability that two people from the same area will be from different race/ethnic groups, is 81.1 in the identified area, compared to 72.5 for the U.S. as a whole."]
[]
[null,"Households"]
[null,"2024 Wealth Index",127]
[null,"2010 Households",109287]
[null,"2020 Households",127038]
[null,"2024 Households",136038]
[null,"2029 Households",141312]
[null,"2010-2020 Annual Rate",1.52E-2]
[null,"2020-2024 Annual Rate",1.6200000000000003E-2]
[null,"2024-2029 Annual Rate",7.6E-3]
[null,"2024  Average Household Size",2.0699999999999998]
[]
[null,"The household count in this area has changed from 127,038 in 2020 to 136,038 in the current year, a change of 1.62% annually.  The five-year projection of households is 141,312, a change of 0.76% annually from the current year total.  Average household size is currently 2.07, compared to 2.10 in the year 2020. The number of families in the current year is 64,882 in the specified area."]
[]
[null,"Mortgage Income"]
[null,"2024 Percent of Income for Mortgage",0.38400000000000001]
[]
[null,"Median Household Income"]
[null,"2024 Median Household Income",101853]
[null,"2029 Median Household Income",113747]
[null,"2024-2029 Annual Rate",2.23E-2]
[]
[null,"Average Household Income"]
[null,"2024 Average Household Income",161202]
[null,"2029 Average Household Income",180410]
[null,"2024-2029 Annual Rate",2.2799999999999997E-2]
[]
[null,"Per Capita Income"]
[null,"2024 Per Capita Income",76921]
[null,"2029 Per Capita Income",87575]
[null,"2024-2029 Annual Rate",2.63E-2]
[]
[null,"GINI Index"]
[null,"2024 Gini Index",38.799999999999997]
[]
[null,"Households by Income"]
[null,"Current median household income is $101,853 in the area, compared to $79,068 for all U.S. households. Median household income is projected to be $113,747 in five years, compared to $91,442 all U.S. households.\n\nCurrent average household income is $161,202 in this area, compared to $113,185 for all U.S. households.  Average household income is projected to be $180,410 in five years, compared to $130,581 for all U.S. households.\n\nCurrent per capita income is $76,921 in the area, compared to the U.S. per capita income of $43,829.  The per capita income is projected to be $87,575 in five years, compared to $51,203 for all U.S. households.\n"]
[]
[null,"Housing"]
[null,"2024 Housing Affordability Index",58]
[null,"2010 Total Housing Units",124939]
[null,"2010 Owner Occupied Housing Units",47902]
[null,"2010 Renter Occupied Housing Units",61385]
[null,"2010 Vacant Housing Units",15652]
[null,"2020 Total Housing Units",143850]
[null,"2020 Owner Occupied Housing Units",51297]
[null,"2020 Renter Occupied Housing Units",75741]
[null,"2020 Vacant Housing Units",16614]
[null,"2024 Total Housing Units",153977]
[null,"2024 Owner Occupied Housing Units",54097]
[null,"2024 Renter Occupied Housing Units",81941]
[null,"2024 Vacant Housing Units",17939]
[null,"2029 Total Housing Units",159681]
[null,"2029 Owner Occupied Housing Units",57435]
[null,"2029 Renter Occupied Housing Units",83877]
[null,"2029 Vacant Housing Units",18369]
[]
[null,"Socioeconomic Status Index"]
[null,"2024 Socioeconomic Status Index",50.9]
[]
[null,"Currently, 35.1% of the 153,977 housing units in the area are owner occupied; 53.2%, renter occupied; and 11.7% are vacant. Currently, in the U.S., 57.9% of the housing units in the area are owner occupied; 32.1% are renter occupied; and 10.0% are vacant. In 2020, there were 143,850 housing units in the area and 11.5% vacant housing units.  The annual rate of change in housing units since 2020 is 1.61%. Median home value in the area is $624,462, compared to a median home value of $355,577 for the U.S. In five years, median value is projected to change by 2.47% annually to $705,640."]
[]
["Data Note: Income is expressed in current dollars.  Housing Affordability Index and Percent of Income for Mortgage calculations are only available for areas with 50 or more owner-occupied housing units. The Gini index measures the extent to which the distribution of income or consumption among individuals or households within an economy deviates from a perfectly equal distribution. A Gini index of 0 represents perfect equality, while an index of 100 implies perfect inequality.\nSource: U.S. Census Bureau. Esri forecasts for 2024 and 2029. Esri converted Census 2010 into 2020 geography and Census 2020 data.\n\n"]
[]
["©2024 Esri"]

{"sheet":"Gap Analysis","index":5,"n_rows":25,"n_cols":5,"rows_kept":25,"cut":false,"hidden":false,"merged":[[1,1,1,4],[0,1,0,4]]}
[null,"CCIM Office Gap Analysis"]
[null,{"$f":"'Data Input'!B6:C6","v":"Galleria/West Loop, Houston (10-minute drive time)"}]
[null,"Forecast Period:",{"$f":"'Data Input'!C15","v":24},"Months"]
[]
[null,"Current Market Conditions",null,null,{"$f":"'Data Input'!H3","v":"2024-09-29T11:14:21.550"}]
[null,"Current Office Employment",null,null,{"$f":"'Data Input'!H19","v":89465.484579845812}]
[null,"Office Space per Employee (RSF)",null,null,{"$f":"E8/E6","v":233.17372166449348}]
[null,"Current Office Demand (RSF)",null,null,{"$f":"'Data Input'!C9-'Data Input'!C10","v":20861000}]
[null,"Current Office Supply (RSF)",null,null,{"$f":"'Data Input'!C9","v":27667000}]
[null,"Current Office Gap (RSF)",null,null,{"$f":"E8-E9","v":-6806000}]
[null,"Current Occupancy Rate",null,null,{"$f":"1-'Data Input'!C10/'Data Input'!C9","v":0.75400296381971299}]
[]
[null,"Forecast Market Conditions",null,null,{"$f":"'Data Input'!H3+('Data Input'!C15*30.25)","v":"2026-09-25T11:14:21.550"}]
[null,"Forecast Office Employment",null,null,{"$f":"'Data Input'!C19","v":90200.605468196343}]
[null,"Office Space per Employee (RSF)",null,null,{"$f":"E16/E14","v":233.17372166449346}]
[null,"Forecast Office Demand (RSF)",null,null,{"$f":"E14*(E8/E6)","v":21032410.873410001}]
[null,"Forecast Office Supply (RSF)",null,null,{"$f":"'Data Input'!C9+'Data Input'!C11","v":27667000}]
[null,"Forecast Office Gap (RSF)",null,null,{"$f":"E16-E17","v":-6634589.1265899986}]
[null,"Forecast Occupancy Rate",null,null,{"$f":"IF(E18<0,1+E18/E17,1)","v":0.76019846291285653}]
[]
[null,"Forecast Market Stabilization"]
[null,"Targeted Stabilized Occupancy Rate",null,null,{"$f":"1-'Data Input'!C12","v":0.83599999999999997}]
[null,"Forecast Annual Absorption (RSF)",null,null,{"$f":"(E16-E8)/('Data Input'!C15/12)","v":85705.436705000699}]
[null,"Additional Months to Reach Stabilized Occupancy",null,null,{"$f":"IF(E22>E19,(((E22-E19)*E17)/E23)*12,0)","v":293.63847250091158}]
[null,"Forecast Stabilization Date",null,null,{"$f":"IF(E24>0,E13+(E24*30.25),\"Not Applicable\")","v":"2051-01-20T00:46:13.278"}]